Department Family,Entity,Date,Expense Type,Expense Area,Supplier,Transaction Number,AP Amount
Department of Health,NHS Barnsley CCG,8/31/2020,C&M-GMS PCN DES PCN support,LOCAL ENHANCED SERVICES,BARNSLEY HEALTHCARE FEDERATION,33432326,"-31,390.84"
Department of Health,NHS Barnsley CCG,8/31/2020,Clinical&Medical-Commercial Sector,OUT OF HOURS,BARNSLEY HEALTHCARE FEDERATION,33462829,"136,313.69"
Department of Health,NHS Barnsley CCG,8/31/2020,Clinical&Medical-Clinical Other,PRIMARY CARE DEVELOPMENT,BARNSLEY HEALTHCARE FEDERATION,33462835,"54,166.67"
Department of Health,NHS Barnsley CCG,8/31/2020,C&M-GP PRACTICE REVENUE - PCTF,LOCAL ENHANCED SERVICES,BARNSLEY HEALTHCARE FEDERATION,33462837,"119,424.50"
Department of Health,NHS Barnsley CCG,8/31/2020,Clinical&Medical-Clinical Other,PRIMARY CARE DEVELOPMENT,BARNSLEY HEALTHCARE FEDERATION,33462840,"59,893.95"
Department of Health,NHS Barnsley CCG,8/31/2020,Clinical&Medical-Commercial Sector,PRIMARY CARE DEVELOPMENT,BARNSLEY HEALTHCARE FEDERATION,33462842,"165,451.00"
Department of Health,NHS Barnsley CCG,8/31/2020,C&M-APMS Contract Value,PRC DELEGATED CO-COMMISSIONING,BARNSLEY HEALTHCARE FEDERATION,33486401,"28,568.81"
Department of Health,NHS Barnsley CCG,8/31/2020,C&M-APMS OOH Opt Outs,PRC DELEGATED CO-COMMISSIONING,BARNSLEY HEALTHCARE FEDERATION,33486401,1.70
Department of Health,NHS Barnsley CCG,8/31/2020,C&M-APMS PCN DES Participation,PRC DELEGATED CO-COMMISSIONING,BARNSLEY HEALTHCARE FEDERATION,33486401,539.11
Department of Health,NHS Barnsley CCG,8/31/2020,C&M-APMS Prem Actual Rent,PRC DELEGATED CO-COMMISSIONING,BARNSLEY HEALTHCARE FEDERATION,33486401,"1,310.42"
Department of Health,NHS Barnsley CCG,8/31/2020,C&M-APMS QOF Aspiration,PRC DELEGATED CO-COMMISSIONING,BARNSLEY HEALTHCARE FEDERATION,33486401,"2,628.10"
Department of Health,NHS Barnsley CCG,8/31/2020,C&M-PMS Prem Rates,PRC DELEGATED CO-COMMISSIONING,BARNSLEY HEALTHCARE FEDERATION,33486401,511.00
Department of Health,NHS Barnsley CCG,8/31/2020,C&M-APMS Contract Value,PRC DELEGATED CO-COMMISSIONING,BARNSLEY HEALTHCARE FEDERATION,33486403,"31,517.93"
Department of Health,NHS Barnsley CCG,8/31/2020,C&M-APMS OOH Opt Outs,PRC DELEGATED CO-COMMISSIONING,BARNSLEY HEALTHCARE FEDERATION,33486403,35.04
Department of Health,NHS Barnsley CCG,8/31/2020,C&M-APMS PCN DES Participation,PRC DELEGATED CO-COMMISSIONING,BARNSLEY HEALTHCARE FEDERATION,33486403,594.76
Department of Health,NHS Barnsley CCG,8/31/2020,C&M-APMS Prem Actual Rent,PRC DELEGATED CO-COMMISSIONING,BARNSLEY HEALTHCARE FEDERATION,33486403,"2,150.00"
Department of Health,NHS Barnsley CCG,8/31/2020,C&M-APMS Prem Healthcentre Rent,PRC DELEGATED CO-COMMISSIONING,BARNSLEY HEALTHCARE FEDERATION,33486403,"7,733.90"
Department of Health,NHS Barnsley CCG,8/31/2020,C&M-PMS Prem Rates,PRC DELEGATED CO-COMMISSIONING,BARNSLEY HEALTHCARE FEDERATION,33486403,511.00
Department of Health,NHS Barnsley CCG,8/31/2020,C&M-PMS QOF Aspiration,PRC DELEGATED CO-COMMISSIONING,BARNSLEY HEALTHCARE FEDERATION,33486403,"2,656.39"
Department of Health,NHS Barnsley CCG,8/31/2020,C&M-APMS Contract Value,PRC DELEGATED CO-COMMISSIONING,BARNSLEY HEALTHCARE FEDERATION,33486405,"28,963.60"
Department of Health,NHS Barnsley CCG,8/31/2020,C&M-APMS OOH Opt Outs,PRC DELEGATED CO-COMMISSIONING,BARNSLEY HEALTHCARE FEDERATION,33486405,32.03
Department of Health,NHS Barnsley CCG,8/31/2020,C&M-APMS PCN DES Participation,PRC DELEGATED CO-COMMISSIONING,BARNSLEY HEALTHCARE FEDERATION,33486405,546.56
Department of Health,NHS Barnsley CCG,8/31/2020,C&M-APMS Prem Actual Rent,PRC DELEGATED CO-COMMISSIONING,BARNSLEY HEALTHCARE FEDERATION,33486405,"6,200.00"
Department of Health,NHS Barnsley CCG,8/31/2020,C&M-PMS Prem Rates,PRC DELEGATED CO-COMMISSIONING,BARNSLEY HEALTHCARE FEDERATION,33486405,"1,272.00"
Department of Health,NHS Barnsley CCG,8/31/2020,C&M-PMS QOF Aspiration,PRC DELEGATED CO-COMMISSIONING,BARNSLEY HEALTHCARE FEDERATION,33486405,"2,516.92"
Department of Health,NHS Barnsley CCG,8/31/2020,C&M-PMS Contract Value,PRC DELEGATED CO-COMMISSIONING,BARNSLEY HEALTHCARE FEDERATION CIC (GOLDTHORPE),33486407,"42,632.30"
Department of Health,NHS Barnsley CCG,8/31/2020,C&M-PMS Out of Hours Opt Outs,PRC DELEGATED CO-COMMISSIONING,BARNSLEY HEALTHCARE FEDERATION CIC (GOLDTHORPE),33486407,1.83
Department of Health,NHS Barnsley CCG,8/31/2020,C&M-PMS PCN DES Participation,PRC DELEGATED CO-COMMISSIONING,BARNSLEY HEALTHCARE FEDERATION CIC (GOLDTHORPE),33486407,803.26
Department of Health,NHS Barnsley CCG,8/31/2020,C&M-PMS Prem Healthcentre Rent,PRC DELEGATED CO-COMMISSIONING,BARNSLEY HEALTHCARE FEDERATION CIC (GOLDTHORPE),33486407,"12,404.58"
Department of Health,NHS Barnsley CCG,8/31/2020,C&M-PMS QOF Aspiration,PRC DELEGATED CO-COMMISSIONING,BARNSLEY HEALTHCARE FEDERATION CIC (GOLDTHORPE),33486407,"4,154.52"
Department of Health,NHS Barnsley CCG,8/31/2020,Prepymnts <1Yr-Non-NHS PeriodEndAccrual,BALANCE SHEET,BARNSLEY HOSPICE,33697408,"378,965.50"
Department of Health,NHS Barnsley CCG,8/31/2020,Hcare Srv Rec Fdtn Trust-Contract Baseline,ACUTE COMMISSIONING,BARNSLEY HOSPITAL NHS FOUNDATION TRUST,33432990,"15,311,136.00"
Department of Health,NHS Barnsley CCG,8/31/2020,Cont Care- Prior Year Payments,Children's Continuing Care Personal Health Budgets,BARNSLEY METROPOLITAN BOROUGH COUNCIL,33432133,"87,085.79"
Department of Health,NHS Barnsley CCG,8/31/2020,Clinical&Medical-Othe Public Sector,Mental Health Services - S117 Mental Health,BARNSLEY METROPOLITAN BOROUGH COUNCIL,33535626,"2,390.96"
Department of Health,NHS Barnsley CCG,8/31/2020,Cont Care-Funded Nursing Care Allow,FUNDED NURSING CARE,BARNSLEY METROPOLITAN BOROUGH COUNCIL,33535626,"121,728.79"
Department of Health,NHS Barnsley CCG,8/31/2020,Cont Care-Interim Funding(Pre Panel),CHC ADULT FULLY FUNDED,BARNSLEY METROPOLITAN BOROUGH COUNCIL,33535626,52.55
Department of Health,NHS Barnsley CCG,8/31/2020,Cont Care-Interim Funding(Pre Panel),FUNDED NURSING CARE,BARNSLEY METROPOLITAN BOROUGH COUNCIL,33535626,525.48
Department of Health,NHS Barnsley CCG,8/31/2020,Clinical&Medical-Othe Public Sector,CHILD AND ADOLESCENT MENTAL HEALTH,BARNSLEY METROPOLITAN BOROUGH COUNCIL,33697443,"19,078.00"
Department of Health,NHS Barnsley CCG,8/31/2020,Clinical&Medical-Othe Public Sector,COMMISSIONING - NON ACUTE,BARNSLEY METROPOLITAN BOROUGH COUNCIL,33697443,"152,625.00"
Department of Health,NHS Barnsley CCG,8/31/2020,Clinical&Medical-Othe Public Sector,COMMUNITY SERVICES,BARNSLEY METROPOLITAN BOROUGH COUNCIL,33697443,"31,896.00"
Department of Health,NHS Barnsley CCG,8/31/2020,Clinical&Medical-Othe Public Sector,MENTAL HEALTH SERVICES - ADVOCACY,BARNSLEY METROPOLITAN BOROUGH COUNCIL,33697443,"9,883.00"
Department of Health,NHS Barnsley CCG,8/31/2020,Cont Care- Adult 100% Fully Funded,CHC ADULT FULLY FUNDED,BARNSLEY METROPOLITAN BOROUGH COUNCIL,33697443,"32,890.00"
Department of Health,NHS Barnsley CCG,8/31/2020,Expenditure on Drugs Action Team,MENTAL HEALTH SERVICES - SPECIALIST SERVICES,BARNSLEY METROPOLITAN BOROUGH COUNCIL,33697443,"25,000.00"
Department of Health,NHS Barnsley CCG,8/31/2020,Local AuthorityRevenue-Non-Contract,COMMUNITY SERVICES,BARNSLEY METROPOLITAN BOROUGH COUNCIL,33697443,"-4,875.00"
Department of Health,NHS Barnsley CCG,8/31/2020,Participation Fees,COMMUNITY SERVICES,BARNSLEY METROPOLITAN BOROUGH COUNCIL,33697443,"11,750.00"
Department of Health,NHS Barnsley CCG,8/31/2020,Services From Local Authorities,SAFEGUARDING,BARNSLEY METROPOLITAN BOROUGH COUNCIL,33697443,"10,362.00"
Department of Health,NHS Barnsley CCG,8/31/2020,Soc Care-Other Soc Care,COMMUNITY SERVICES,BARNSLEY METROPOLITAN BOROUGH COUNCIL,33697443,"232,770.00"
Department of Health,NHS Barnsley CCG,8/31/2020,Soc Care-Other Soc Care,INTERMEDIATE CARE,BARNSLEY METROPOLITAN BOROUGH COUNCIL,33697443,"17,833.00"
Department of Health,NHS Barnsley CCG,8/31/2020,Soc Care-Re-ablement services,COMMUNITY SERVICES,BARNSLEY METROPOLITAN BOROUGH COUNCIL,33697443,"195,691.00"
Department of Health,NHS Barnsley CCG,8/31/2020,Social Care-Res Long Stay Exp,LONG TERM CONDITIONS,BARNSLEY METROPOLITAN BOROUGH COUNCIL,33697443,"433,880.00"
Department of Health,NHS Barnsley CCG,8/31/2020,Social Care-Res Short Stay Exp,COMMUNITY SERVICES,BARNSLEY METROPOLITAN BOROUGH COUNCIL,33697443,"68,708.00"
Department of Health,NHS Barnsley CCG,8/31/2020,C&M-GMS PCN DES PCN support,PRC DELEGATED CO-COMMISSIONING,BHF - PCN,33432262,"31,390.84"
Department of Health,NHS Barnsley CCG,8/31/2020,C&M-GMS DES Extended Hours Access,PRC DELEGATED CO-COMMISSIONING,BHF - PCN,33432594,"31,857.95"
Department of Health,NHS Barnsley CCG,8/31/2020,C&M-GMS PCN DES Clinical Director,PRC DELEGATED CO-COMMISSIONING,BHF - PCN,33432594,"15,863.06"
Department of Health,NHS Barnsley CCG,8/31/2020,C&M-APMS PCN DES PCN support,LOCAL ENHANCED SERVICES,BHF - PCN,33697363,"32,956.50"
Department of Health,NHS Barnsley CCG,8/31/2020,C&M-GMS Global Sum,PRC DELEGATED CO-COMMISSIONING,NHS BARNSLEY CCG GP PRACTICE,33664244,"99,528.84"
Department of Health,NHS Barnsley CCG,8/31/2020,C&M-GMS PCN DES Participation,PRC DELEGATED CO-COMMISSIONING,NHS BARNSLEY CCG GP PRACTICE,33664244,"1,991.57"
Department of Health,NHS Barnsley CCG,8/31/2020,C&M-GMS Prem Actual Rent,PRC DELEGATED CO-COMMISSIONING,NHS BARNSLEY CCG GP PRACTICE,33664244,"12,500.00"
Department of Health,NHS Barnsley CCG,8/31/2020,C&M-GMS Prem Healthcentre Rent,PRC DELEGATED CO-COMMISSIONING,NHS BARNSLEY CCG GP PRACTICE,33664244,"3,362.77"
Department of Health,NHS Barnsley CCG,8/31/2020,C&M-GMS QOF Aspiration,PRC DELEGATED CO-COMMISSIONING,NHS BARNSLEY CCG GP PRACTICE,33664244,"12,749.60"
Department of Health,NHS Barnsley CCG,8/31/2020,ME-GMS GP Pension EEs,PRC DELEGATED CO-COMMISSIONING,NHS BARNSLEY CCG GP PRACTICE,33664244,"1,388.35"
Department of Health,NHS Barnsley CCG,8/31/2020,ME-GMS GP Pension ERs Adjustments,PRC DELEGATED CO-COMMISSIONING,NHS BARNSLEY CCG GP PRACTICE,33664244,376.32
Department of Health,NHS Barnsley CCG,7/31/2020,Clinical&Medical-Voluntary Sector,CHILD AND ADOLESCENT MENTAL HEALTH,CHILDREN & YOUNG PEOPLES EMPOWERMENT PROJECT LTD,33383910,"183,969.00"
Department of Health,NHS Barnsley CCG,7/31/2020,Clinical&Medical-Voluntary Sector,CHILD AND ADOLESCENT MENTAL HEALTH,CHILDREN & YOUNG PEOPLES EMPOWERMENT PROJECT LTD,33383931,"30,000.00"
Department of Health,NHS Barnsley CCG,8/31/2020,Voids and Subsidies,RECHARGES NHS PROPERTY SERVICES LTD,COMMUNITY HEALTH PARTNERSHIPS LTD,33421913,"53,950.01"
Department of Health,NHS Barnsley CCG,8/31/2020,Clinical&Medical-Commercial Sector,Mental Health Services - S117 Mental Health,CYGNET BEHAVIOURAL HEALTH LTD,33535787,"34,224.00"
Department of Health,NHS Barnsley CCG,8/31/2020,Telecoms-Data lines,PRIMARY CARE IT,DAISY CORPORATE SERVICES TRADING LTD,33710282,"41,602.83"
Department of Health,NHS Barnsley CCG,8/31/2020,Telecoms-Data lines,PRIMARY CARE IT,DAISY CORPORATE SERVICES TRADING LTD,33710283,"37,480.58"
Department of Health,NHS Barnsley CCG,8/31/2020,Telecoms-Data lines,PRIMARY CARE IT,DAISY CORPORATE SERVICES TRADING LTD,33710284,"37,480.58"
Department of Health,NHS Barnsley CCG,8/31/2020,C&M-GMS DES Learn Dsblty Hlth Chk,PRC DELEGATED CO-COMMISSIONING,NHS BARNSLEY CCG GP PRACTICE,33664224,140.00
Department of Health,NHS Barnsley CCG,8/31/2020,C&M-GMS Global Sum,PRC DELEGATED CO-COMMISSIONING,NHS BARNSLEY CCG GP PRACTICE,33664224,"91,757.14"
Department of Health,NHS Barnsley CCG,8/31/2020,C&M-GMS PCN DES Participation,PRC DELEGATED CO-COMMISSIONING,NHS BARNSLEY CCG GP PRACTICE,33664224,"1,801.32"
Department of Health,NHS Barnsley CCG,8/31/2020,C&M-GMS Prem Healthcentre Rent,PRC DELEGATED CO-COMMISSIONING,NHS BARNSLEY CCG GP PRACTICE,33664224,"27,745.64"
Department of Health,NHS Barnsley CCG,8/31/2020,C&M-GMS QOF Aspiration,PRC DELEGATED CO-COMMISSIONING,NHS BARNSLEY CCG GP PRACTICE,33664224,"10,766.64"
Department of Health,NHS Barnsley CCG,8/31/2020,Hcare Srv Rec Fdtn Trust-Contract Baseline,ACUTE COMMISSIONING,DONCASTER AND BASSETLAW HOSPITALS NHS FOUNDATION TRUST,33432991,"455,874.00"
Department of Health,NHS Barnsley CCG,8/31/2020,C&M-PMS GP Statutory Levy,PRC DELEGATED CO-COMMISSIONING,NHS BARNSLEY CCG GP PRACTICE,33486378,-348.93
Department of Health,NHS Barnsley CCG,8/31/2020,C&M-PMS Out of Hours Opt Outs,PRC DELEGATED CO-COMMISSIONING,NHS BARNSLEY CCG GP PRACTICE,33486378,"-4,573.51"
Department of Health,NHS Barnsley CCG,8/31/2020,C&M-PMS Voluntary Levy,PRC DELEGATED CO-COMMISSIONING,NHS BARNSLEY CCG GP PRACTICE,33486378,-61.06
Department of Health,NHS Barnsley CCG,8/31/2020,ME-PMS GP Pension EEs-PMS,PRC DELEGATED CO-COMMISSIONING,NHS BARNSLEY CCG GP PRACTICE,33486378,"-10,405.34"
Department of Health,NHS Barnsley CCG,8/31/2020,ME-PMS GP Pension ERs Adjs - PMS,PRC DELEGATED CO-COMMISSIONING,NHS BARNSLEY CCG GP PRACTICE,33486378,"-10,737.07"
Department of Health,NHS Barnsley CCG,8/31/2020,C&M-PMS Contract Value,PRC DELEGATED CO-COMMISSIONING,NHS BARNSLEY CCG GP PRACTICE,33486379,"95,844.33"
Department of Health,NHS Barnsley CCG,8/31/2020,C&M-PMS PCN DES Participation,PRC DELEGATED CO-COMMISSIONING,NHS BARNSLEY CCG GP PRACTICE,33486379,"1,802.59"
Department of Health,NHS Barnsley CCG,8/31/2020,C&M-PMS PCO Other,PRC DELEGATED CO-COMMISSIONING,NHS BARNSLEY CCG GP PRACTICE,33486379,645.40
Department of Health,NHS Barnsley CCG,8/31/2020,C&M-PMS Prem Healthcentre Rent,PRC DELEGATED CO-COMMISSIONING,NHS BARNSLEY CCG GP PRACTICE,33486379,"18,613.69"
Department of Health,NHS Barnsley CCG,8/31/2020,C&M-PMS Prem Notional Rent,PRC DELEGATED CO-COMMISSIONING,NHS BARNSLEY CCG GP PRACTICE,33486379,"1,987.50"
Department of Health,NHS Barnsley CCG,8/31/2020,C&M-PMS Prem Rates,PRC DELEGATED CO-COMMISSIONING,NHS BARNSLEY CCG GP PRACTICE,33486379,425.00
Department of Health,NHS Barnsley CCG,8/31/2020,C&M-PMS QOF Aspiration,PRC DELEGATED CO-COMMISSIONING,NHS BARNSLEY CCG GP PRACTICE,33486379,"10,318.42"
Department of Health,NHS Barnsley CCG,8/31/2020,C&M-PMS Contract Value,PRC DELEGATED CO-COMMISSIONING,NHS BARNSLEY CCG GP PRACTICE,33486383,"59,942.05"
Department of Health,NHS Barnsley CCG,8/31/2020,C&M-PMS PCN DES Participation,PRC DELEGATED CO-COMMISSIONING,NHS BARNSLEY CCG GP PRACTICE,33486383,"1,121.82"
Department of Health,NHS Barnsley CCG,8/31/2020,C&M-PMS Prem Healthcentre Rent,PRC DELEGATED CO-COMMISSIONING,NHS BARNSLEY CCG GP PRACTICE,33486383,"22,036.84"
Department of Health,NHS Barnsley CCG,8/31/2020,C&M-PMS QOF Aspiration,PRC DELEGATED CO-COMMISSIONING,NHS BARNSLEY CCG GP PRACTICE,33486383,"5,408.39"
Department of Health,NHS Barnsley CCG,8/31/2020,C&M-GMS Global Sum,PRC DELEGATED CO-COMMISSIONING,NHS BARNSLEY CCG GP PRACTICE,33664226,"79,928.70"
Department of Health,NHS Barnsley CCG,8/31/2020,C&M-GMS PCN DES Participation,PRC DELEGATED CO-COMMISSIONING,NHS BARNSLEY CCG GP PRACTICE,33664226,"1,585.76"
Department of Health,NHS Barnsley CCG,8/31/2020,C&M-GMS PCO Other,PRC DELEGATED CO-COMMISSIONING,NHS BARNSLEY CCG GP PRACTICE,33664226,"1,855.80"
Department of Health,NHS Barnsley CCG,8/31/2020,C&M-GMS Prem Notional Rent,PRC DELEGATED CO-COMMISSIONING,NHS BARNSLEY CCG GP PRACTICE,33664226,"4,658.33"
Department of Health,NHS Barnsley CCG,8/31/2020,C&M-GMS Prem Rates,PRC DELEGATED CO-COMMISSIONING,NHS BARNSLEY CCG GP PRACTICE,33664226,"1,347.00"
Department of Health,NHS Barnsley CCG,8/31/2020,C&M-GMS QOF Aspiration,PRC DELEGATED CO-COMMISSIONING,NHS BARNSLEY CCG GP PRACTICE,33664226,"8,894.14"
Department of Health,NHS Barnsley CCG,8/31/2020,C&M-PMS GP Statutory Levy,PRC DELEGATED CO-COMMISSIONING,NHS BARNSLEY CCG GP PRACTICE,33486386,-571.03
Department of Health,NHS Barnsley CCG,8/31/2020,C&M-PMS Out of Hours Opt Outs,PRC DELEGATED CO-COMMISSIONING,NHS BARNSLEY CCG GP PRACTICE,33486386,"-6,610.21"
Department of Health,NHS Barnsley CCG,8/31/2020,C&M-PMS Voluntary Levy,PRC DELEGATED CO-COMMISSIONING,NHS BARNSLEY CCG GP PRACTICE,33486386,-99.93
Department of Health,NHS Barnsley CCG,8/31/2020,ME-PMS GP Pension EEs-PMS,PRC DELEGATED CO-COMMISSIONING,NHS BARNSLEY CCG GP PRACTICE,33486386,"-13,162.53"
Department of Health,NHS Barnsley CCG,8/31/2020,ME-PMS GP Pension ERs Adjs - PMS,PRC DELEGATED CO-COMMISSIONING,NHS BARNSLEY CCG GP PRACTICE,33486386,"-13,780.81"
Department of Health,NHS Barnsley CCG,8/31/2020,C&M-PMS Contract Value,PRC DELEGATED CO-COMMISSIONING,NHS BARNSLEY CCG GP PRACTICE,33486387,"138,517.78"
Department of Health,NHS Barnsley CCG,8/31/2020,C&M-PMS PCN DES Participation,PRC DELEGATED CO-COMMISSIONING,NHS BARNSLEY CCG GP PRACTICE,33486387,"2,599.95"
Department of Health,NHS Barnsley CCG,8/31/2020,C&M-PMS Prem Notional Rent,PRC DELEGATED CO-COMMISSIONING,NHS BARNSLEY CCG GP PRACTICE,33486387,"6,333.33"
Department of Health,NHS Barnsley CCG,8/31/2020,C&M-PMS Prem Rates,PRC DELEGATED CO-COMMISSIONING,NHS BARNSLEY CCG GP PRACTICE,33486387,"2,314.00"
Department of Health,NHS Barnsley CCG,8/31/2020,C&M-PMS QOF Aspiration,PRC DELEGATED CO-COMMISSIONING,NHS BARNSLEY CCG GP PRACTICE,33486387,"13,947.70"
Department of Health,NHS Barnsley CCG,8/31/2020,C&M-PMS Cost of Drugs -Dispensing,LOCAL ENHANCED SERVICES,NHS BARNSLEY CCG GP PRACTICE,33682420,"-78,371.04"
Department of Health,NHS Barnsley CCG,8/31/2020,C&M-PMS Prsc Chrgs Cll&Rmttd by GPs,PRC DELEGATED CO-COMMISSIONING,NHS BARNSLEY CCG GP PRACTICE,33682420,"-4,886.10"
Department of Health,NHS Barnsley CCG,8/31/2020,C&M-PMS Cost of Drugs -Dispensing,LOCAL ENHANCED SERVICES,NHS BARNSLEY CCG GP PRACTICE,33682421,"164,096.59"
Department of Health,NHS Barnsley CCG,8/31/2020,C&M-PMS Prof fees Dispensing,PRC DELEGATED CO-COMMISSIONING,NHS BARNSLEY CCG GP PRACTICE,33682421,"26,741.94"
Department of Health,NHS Barnsley CCG,8/31/2020,C&M-PMS Prsc Chrgs Cll&Rmttd by GPs,LOCAL ENHANCED SERVICES,NHS BARNSLEY CCG GP PRACTICE,33682421,"4,886.10"
Department of Health,NHS Barnsley CCG,8/31/2020,C&M-GMS Global Sum,PRC DELEGATED CO-COMMISSIONING,NHS BARNSLEY CCG GP PRACTICE,33671619,"26,827.85"
Department of Health,NHS Barnsley CCG,8/31/2020,C&M-GMS PCN DES Participation,PRC DELEGATED CO-COMMISSIONING,NHS BARNSLEY CCG GP PRACTICE,33671619,509.52
Department of Health,NHS Barnsley CCG,8/31/2020,C&M-GMS PCO Other,PRC DELEGATED CO-COMMISSIONING,NHS BARNSLEY CCG GP PRACTICE,33671619,238.40
Department of Health,NHS Barnsley CCG,8/31/2020,C&M-GMS Prem Healthcentre Rent,PRC DELEGATED CO-COMMISSIONING,NHS BARNSLEY CCG GP PRACTICE,33671619,"1,512.79"
Department of Health,NHS Barnsley CCG,8/31/2020,C&M-GMS QOF Aspiration,PRC DELEGATED CO-COMMISSIONING,NHS BARNSLEY CCG GP PRACTICE,33671619,"2,713.55"
Department of Health,NHS Barnsley CCG,8/31/2020,C&M-GMS DES Learn Dsblty Hlth Chk,PRC DELEGATED CO-COMMISSIONING,NHS BARNSLEY CCG GP PRACTICE,33664228,140.00
Department of Health,NHS Barnsley CCG,8/31/2020,C&M-GMS Global Sum,PRC DELEGATED CO-COMMISSIONING,NHS BARNSLEY CCG GP PRACTICE,33664228,"44,871.45"
Department of Health,NHS Barnsley CCG,8/31/2020,C&M-GMS PCN DES Participation,PRC DELEGATED CO-COMMISSIONING,NHS BARNSLEY CCG GP PRACTICE,33664228,887.44
Department of Health,NHS Barnsley CCG,8/31/2020,C&M-GMS PCO Other,PRC DELEGATED CO-COMMISSIONING,NHS BARNSLEY CCG GP PRACTICE,33664228,"3,463.00"
Department of Health,NHS Barnsley CCG,8/31/2020,C&M-GMS Prem Notional Rent,PRC DELEGATED CO-COMMISSIONING,NHS BARNSLEY CCG GP PRACTICE,33664228,"1,839.05"
Department of Health,NHS Barnsley CCG,8/31/2020,C&M-GMS Prem Rates,PRC DELEGATED CO-COMMISSIONING,NHS BARNSLEY CCG GP PRACTICE,33664228,"4,074.13"
Department of Health,NHS Barnsley CCG,8/31/2020,C&M-GMS QOF Aspiration,PRC DELEGATED CO-COMMISSIONING,NHS BARNSLEY CCG GP PRACTICE,33664228,"4,111.93"
Department of Health,NHS Barnsley CCG,8/31/2020,C&M-PMS Contract Value,PRC DELEGATED CO-COMMISSIONING,NHS BARNSLEY CCG GP PRACTICE,33486385,"38,993.45"
Department of Health,NHS Barnsley CCG,8/31/2020,C&M-PMS Out of Hours Opt Outs,PRC DELEGATED CO-COMMISSIONING,NHS BARNSLEY CCG GP PRACTICE,33486385,6.67
Department of Health,NHS Barnsley CCG,8/31/2020,C&M-PMS PCN DES Participation,PRC DELEGATED CO-COMMISSIONING,NHS BARNSLEY CCG GP PRACTICE,33486385,734.75
Department of Health,NHS Barnsley CCG,8/31/2020,C&M-PMS Prem Healthcentre Rent,PRC DELEGATED CO-COMMISSIONING,NHS BARNSLEY CCG GP PRACTICE,33486385,"3,823.07"
Department of Health,NHS Barnsley CCG,8/31/2020,C&M-PMS Prem Notional Rent,PRC DELEGATED CO-COMMISSIONING,NHS BARNSLEY CCG GP PRACTICE,33486385,"8,808.34"
Department of Health,NHS Barnsley CCG,8/31/2020,C&M-PMS Prem Rates,PRC DELEGATED CO-COMMISSIONING,NHS BARNSLEY CCG GP PRACTICE,33486385,"1,616.77"
Department of Health,NHS Barnsley CCG,8/31/2020,C&M-PMS QOF Aspiration,PRC DELEGATED CO-COMMISSIONING,NHS BARNSLEY CCG GP PRACTICE,33486385,"3,729.60"
Department of Health,NHS Barnsley CCG,8/31/2020,C&M-GMS GP Statutory Levy,PRC DELEGATED CO-COMMISSIONING,NHS BARNSLEY CCG GP PRACTICE,33664231,-455.20
Department of Health,NHS Barnsley CCG,8/31/2020,C&M-GMS Voluntary Levy,PRC DELEGATED CO-COMMISSIONING,NHS BARNSLEY CCG GP PRACTICE,33664231,-79.66
Department of Health,NHS Barnsley CCG,8/31/2020,ME - GMS GP Prior Year ERs,PRC DELEGATED CO-COMMISSIONING,NHS BARNSLEY CCG GP PRACTICE,33664231,"-6,911.99"
Department of Health,NHS Barnsley CCG,8/31/2020,ME - GMS TPS Added Years Adj EEs,PRC DELEGATED CO-COMMISSIONING,NHS BARNSLEY CCG GP PRACTICE,33664231,-681.25
Department of Health,NHS Barnsley CCG,8/31/2020,ME-GMS GP Pension EEs,PRC DELEGATED CO-COMMISSIONING,NHS BARNSLEY CCG GP PRACTICE,33664231,"-12,282.22"
Department of Health,NHS Barnsley CCG,8/31/2020,ME-GMS GP Pension EEs Adjustments,PRC DELEGATED CO-COMMISSIONING,NHS BARNSLEY CCG GP PRACTICE,33664231,"-2,835.00"
Department of Health,NHS Barnsley CCG,8/31/2020,ME-GMS GP Pension ERs Adjustments,PRC DELEGATED CO-COMMISSIONING,NHS BARNSLEY CCG GP PRACTICE,33664231,"-15,556.73"
Department of Health,NHS Barnsley CCG,8/31/2020,ME-GMS GP Prior Year EEs,PRC DELEGATED CO-COMMISSIONING,NHS BARNSLEY CCG GP PRACTICE,33664231,"-6,489.00"
Department of Health,NHS Barnsley CCG,8/31/2020,C&M-GMS Global Sum,PRC DELEGATED CO-COMMISSIONING,NHS BARNSLEY CCG GP PRACTICE,33664232,"114,988.65"
Department of Health,NHS Barnsley CCG,8/31/2020,C&M-GMS PCN DES Participation,PRC DELEGATED CO-COMMISSIONING,NHS BARNSLEY CCG GP PRACTICE,33664232,"2,269.99"
Department of Health,NHS Barnsley CCG,8/31/2020,C&M-GMS Prem Notional Rent,PRC DELEGATED CO-COMMISSIONING,NHS BARNSLEY CCG GP PRACTICE,33664232,"7,833.33"
Department of Health,NHS Barnsley CCG,8/31/2020,C&M-GMS QOF Aspiration,PRC DELEGATED CO-COMMISSIONING,NHS BARNSLEY CCG GP PRACTICE,33664232,"11,271.67"
Department of Health,NHS Barnsley CCG,8/31/2020,C&M-GMS Global Sum,PRC DELEGATED CO-COMMISSIONING,NHS BARNSLEY CCG GP PRACTICE,33664230,"102,297.94"
Department of Health,NHS Barnsley CCG,8/31/2020,C&M-GMS PCN DES Participation,PRC DELEGATED CO-COMMISSIONING,NHS BARNSLEY CCG GP PRACTICE,33664230,"2,030.90"
Department of Health,NHS Barnsley CCG,8/31/2020,C&M-GMS Prem Notional Rent,PRC DELEGATED CO-COMMISSIONING,NHS BARNSLEY CCG GP PRACTICE,33664230,"13,593.75"
Department of Health,NHS Barnsley CCG,8/31/2020,C&M-GMS Prem Rates,PRC DELEGATED CO-COMMISSIONING,NHS BARNSLEY CCG GP PRACTICE,33664230,"6,642.39"
Department of Health,NHS Barnsley CCG,8/31/2020,C&M-GMS Prem Water Rates,PRC DELEGATED CO-COMMISSIONING,NHS BARNSLEY CCG GP PRACTICE,33664230,75.81
Department of Health,NHS Barnsley CCG,8/31/2020,C&M-GMS QOF Aspiration,PRC DELEGATED CO-COMMISSIONING,NHS BARNSLEY CCG GP PRACTICE,33664230,"10,258.12"
Department of Health,NHS Barnsley CCG,8/31/2020,C&M-GMS Global Sum,PRC DELEGATED CO-COMMISSIONING,NHS BARNSLEY CCG GP PRACTICE,33664234,"85,263.10"
Department of Health,NHS Barnsley CCG,8/31/2020,C&M-GMS PCN DES Participation,PRC DELEGATED CO-COMMISSIONING,NHS BARNSLEY CCG GP PRACTICE,33664234,"1,704.01"
Department of Health,NHS Barnsley CCG,8/31/2020,C&M-GMS Prem Rates,PRC DELEGATED CO-COMMISSIONING,NHS BARNSLEY CCG GP PRACTICE,33664234,"11,136.00"
Department of Health,NHS Barnsley CCG,8/31/2020,C&M-GMS QOF Aspiration,PRC DELEGATED CO-COMMISSIONING,NHS BARNSLEY CCG GP PRACTICE,33664234,"12,296.98"
Department of Health,NHS Barnsley CCG,8/31/2020,C&M-PMS Contract Value,PRC DELEGATED CO-COMMISSIONING,NHS BARNSLEY CCG GP PRACTICE,33486388,-560.45
Department of Health,NHS Barnsley CCG,8/31/2020,C&M-PMS GP Statutory Levy,PRC DELEGATED CO-COMMISSIONING,NHS BARNSLEY CCG GP PRACTICE,33486388,-568.73
Department of Health,NHS Barnsley CCG,8/31/2020,C&M-PMS Out of Hours Opt Outs,PRC DELEGATED CO-COMMISSIONING,NHS BARNSLEY CCG GP PRACTICE,33486388,"-7,190.27"
Department of Health,NHS Barnsley CCG,8/31/2020,C&M-PMS Voluntary Levy,PRC DELEGATED CO-COMMISSIONING,NHS BARNSLEY CCG GP PRACTICE,33486388,-99.53
Department of Health,NHS Barnsley CCG,8/31/2020,ME - PMS GP Prior Year ERs,PRC DELEGATED CO-COMMISSIONING,NHS BARNSLEY CCG GP PRACTICE,33486388,"-12,667.16"
Department of Health,NHS Barnsley CCG,8/31/2020,ME - PMS TPS Added Years Adj EEs,PRC DELEGATED CO-COMMISSIONING,NHS BARNSLEY CCG GP PRACTICE,33486388,-346.67
Department of Health,NHS Barnsley CCG,8/31/2020,ME-PMS GP Pension EEs-PMS,PRC DELEGATED CO-COMMISSIONING,NHS BARNSLEY CCG GP PRACTICE,33486388,"-9,153.76"
Department of Health,NHS Barnsley CCG,8/31/2020,ME-PMS GP Pension ERs Adjs - PMS,PRC DELEGATED CO-COMMISSIONING,NHS BARNSLEY CCG GP PRACTICE,33486388,"-9,577.00"
Department of Health,NHS Barnsley CCG,8/31/2020,ME-PMS GP Prior Year EEs,PRC DELEGATED CO-COMMISSIONING,NHS BARNSLEY CCG GP PRACTICE,33486388,"-12,772.87"
Department of Health,NHS Barnsley CCG,8/31/2020,C&M-PMS Contract Value,PRC DELEGATED CO-COMMISSIONING,NHS BARNSLEY CCG GP PRACTICE,33486389,"150,673.34"
Department of Health,NHS Barnsley CCG,8/31/2020,C&M-PMS Out of Hours Opt Outs,PRC DELEGATED CO-COMMISSIONING,NHS BARNSLEY CCG GP PRACTICE,33486389,25.97
Department of Health,NHS Barnsley CCG,8/31/2020,C&M-PMS PCN DES Participation,PRC DELEGATED CO-COMMISSIONING,NHS BARNSLEY CCG GP PRACTICE,33486389,"2,839.03"
Department of Health,NHS Barnsley CCG,8/31/2020,C&M-PMS PCO Locum Adop/Pat/Mat,PRC DELEGATED CO-COMMISSIONING,NHS BARNSLEY CCG GP PRACTICE,33486389,"4,587.59"
Department of Health,NHS Barnsley CCG,8/31/2020,C&M-PMS Prem Notional Rent,PRC DELEGATED CO-COMMISSIONING,NHS BARNSLEY CCG GP PRACTICE,33486389,"11,879.17"
Department of Health,NHS Barnsley CCG,8/31/2020,C&M-PMS QOF Aspiration,PRC DELEGATED CO-COMMISSIONING,NHS BARNSLEY CCG GP PRACTICE,33486389,"19,156.49"
Department of Health,NHS Barnsley CCG,8/31/2020,ME - PMS GP Prior Year ERs,PRC DELEGATED CO-COMMISSIONING,NHS BARNSLEY CCG GP PRACTICE,33486389,"6,644.65"
Department of Health,NHS Barnsley CCG,8/31/2020,ME-PMS GP Pension EEs Adjs - PMS,PRC DELEGATED CO-COMMISSIONING,NHS BARNSLEY CCG GP PRACTICE,33486389,160.16
Department of Health,NHS Barnsley CCG,8/31/2020,ME-PMS GP Prior Year EEs,PRC DELEGATED CO-COMMISSIONING,NHS BARNSLEY CCG GP PRACTICE,33486389,"6,318.10"
Department of Health,NHS Barnsley CCG,8/31/2020,C&M-PMS GP Statutory Levy,PRC DELEGATED CO-COMMISSIONING,NHS BARNSLEY CCG GP PRACTICE,33486390,-406.93
Department of Health,NHS Barnsley CCG,8/31/2020,C&M-PMS Out of Hours Opt Outs,PRC DELEGATED CO-COMMISSIONING,NHS BARNSLEY CCG GP PRACTICE,33486390,"-5,241.18"
Department of Health,NHS Barnsley CCG,8/31/2020,C&M-PMS Voluntary Levy,PRC DELEGATED CO-COMMISSIONING,NHS BARNSLEY CCG GP PRACTICE,33486390,-71.21
Department of Health,NHS Barnsley CCG,8/31/2020,ME-PMS GP Pension EEs-PMS,PRC DELEGATED CO-COMMISSIONING,NHS BARNSLEY CCG GP PRACTICE,33486390,"-9,659.59"
Department of Health,NHS Barnsley CCG,8/31/2020,ME-PMS GP Pension ERs Adjs - PMS,PRC DELEGATED CO-COMMISSIONING,NHS BARNSLEY CCG GP PRACTICE,33486390,"-10,149.88"
Department of Health,NHS Barnsley CCG,8/31/2020,C&M-PMS Contract Value,PRC DELEGATED CO-COMMISSIONING,NHS BARNSLEY CCG GP PRACTICE,33486391,"109,830.28"
Department of Health,NHS Barnsley CCG,8/31/2020,C&M-PMS DES Learn Dsblty Hlth Chk,PRC DELEGATED CO-COMMISSIONING,NHS BARNSLEY CCG GP PRACTICE,33486391,"4,340.00"
Department of Health,NHS Barnsley CCG,8/31/2020,C&M-PMS PCN DES Participation,PRC DELEGATED CO-COMMISSIONING,NHS BARNSLEY CCG GP PRACTICE,33486391,"2,045.70"
Department of Health,NHS Barnsley CCG,8/31/2020,C&M-PMS PCO Other,PRC DELEGATED CO-COMMISSIONING,NHS BARNSLEY CCG GP PRACTICE,33486391,738.80
Department of Health,NHS Barnsley CCG,8/31/2020,C&M-PMS Prem Actual Rent,PRC DELEGATED CO-COMMISSIONING,NHS BARNSLEY CCG GP PRACTICE,33486391,"13,654.16"
Department of Health,NHS Barnsley CCG,8/31/2020,C&M-PMS Prem Rates,PRC DELEGATED CO-COMMISSIONING,NHS BARNSLEY CCG GP PRACTICE,33486391,"3,328.00"
Department of Health,NHS Barnsley CCG,8/31/2020,C&M-PMS Prem Water Rates,PRC DELEGATED CO-COMMISSIONING,NHS BARNSLEY CCG GP PRACTICE,33486391,461.98
Department of Health,NHS Barnsley CCG,8/31/2020,C&M-PMS QOF Aspiration,PRC DELEGATED CO-COMMISSIONING,NHS BARNSLEY CCG GP PRACTICE,33486391,"10,981.94"
Department of Health,NHS Barnsley CCG,8/31/2020,C&M-PMS Contract Value,PRC DELEGATED CO-COMMISSIONING,NHS BARNSLEY CCG GP PRACTICE,33486393,"95,585.63"
Department of Health,NHS Barnsley CCG,8/31/2020,C&M-PMS Out of Hours Opt Outs,PRC DELEGATED CO-COMMISSIONING,NHS BARNSLEY CCG GP PRACTICE,33486393,7.06
Department of Health,NHS Barnsley CCG,8/31/2020,C&M-PMS PCN DES Participation,PRC DELEGATED CO-COMMISSIONING,NHS BARNSLEY CCG GP PRACTICE,33486393,"1,801.03"
Department of Health,NHS Barnsley CCG,8/31/2020,C&M-PMS Prem Actual Rent,PRC DELEGATED CO-COMMISSIONING,NHS BARNSLEY CCG GP PRACTICE,33486393,"8,566.67"
Department of Health,NHS Barnsley CCG,8/31/2020,C&M-PMS QOF Aspiration,PRC DELEGATED CO-COMMISSIONING,NHS BARNSLEY CCG GP PRACTICE,33486393,"7,847.52"
Department of Health,NHS Barnsley CCG,8/31/2020,C&M-GMS Global Sum,PRC DELEGATED CO-COMMISSIONING,NHS BARNSLEY CCG GP PRACTICE,33664236,"61,142.44"
Department of Health,NHS Barnsley CCG,8/31/2020,C&M-GMS PCN DES Participation,PRC DELEGATED CO-COMMISSIONING,NHS BARNSLEY CCG GP PRACTICE,33664236,"1,196.18"
Department of Health,NHS Barnsley CCG,8/31/2020,C&M-GMS Prem Healthcentre Rent,PRC DELEGATED CO-COMMISSIONING,NHS BARNSLEY CCG GP PRACTICE,33664236,"25,525.82"
Department of Health,NHS Barnsley CCG,8/31/2020,C&M-GMS QOF Aspiration,PRC DELEGATED CO-COMMISSIONING,NHS BARNSLEY CCG GP PRACTICE,33664236,"6,108.91"
Department of Health,NHS Barnsley CCG,8/31/2020,C&M-PMS Contract Value,PRC DELEGATED CO-COMMISSIONING,NHS BARNSLEY CCG GP PRACTICE,33486394,"109,242.36"
Department of Health,NHS Barnsley CCG,8/31/2020,C&M-PMS PCN DES Participation,PRC DELEGATED CO-COMMISSIONING,NHS BARNSLEY CCG GP PRACTICE,33486394,"2,050.79"
Department of Health,NHS Barnsley CCG,8/31/2020,C&M-PMS Prem Rates,PRC DELEGATED CO-COMMISSIONING,NHS BARNSLEY CCG GP PRACTICE,33486394,"3,610.00"
Department of Health,NHS Barnsley CCG,8/31/2020,C&M-PMS QOF Aspiration,PRC DELEGATED CO-COMMISSIONING,NHS BARNSLEY CCG GP PRACTICE,33486394,"12,325.81"
Department of Health,NHS Barnsley CCG,8/31/2020,ME - PMS GP Prior Year ERs,PRC DELEGATED CO-COMMISSIONING,NHS BARNSLEY CCG GP PRACTICE,33486394,"5,334.32"
Department of Health,NHS Barnsley CCG,8/31/2020,ME-PMS GP Prior Year EEs,PRC DELEGATED CO-COMMISSIONING,NHS BARNSLEY CCG GP PRACTICE,33486394,"4,636.93"
Department of Health,NHS Barnsley CCG,8/31/2020,C&M-PMS GP Statutory Levy,PRC DELEGATED CO-COMMISSIONING,NHS BARNSLEY CCG GP PRACTICE,33509203,-433.27
Department of Health,NHS Barnsley CCG,8/31/2020,C&M-PMS Out of Hours Opt Outs,PRC DELEGATED CO-COMMISSIONING,NHS BARNSLEY CCG GP PRACTICE,33509203,"-5,212.56"
Department of Health,NHS Barnsley CCG,8/31/2020,C&M-PMS Voluntary Levy,PRC DELEGATED CO-COMMISSIONING,NHS BARNSLEY CCG GP PRACTICE,33509203,-75.82
Department of Health,NHS Barnsley CCG,8/31/2020,ME - PMS GP Prior Year ERs,PRC DELEGATED CO-COMMISSIONING,NHS BARNSLEY CCG GP PRACTICE,33509203,"-5,422.25"
Department of Health,NHS Barnsley CCG,8/31/2020,ME - PMS TPS Added Years Adj EEs,PRC DELEGATED CO-COMMISSIONING,NHS BARNSLEY CCG GP PRACTICE,33509203,-156.25
Department of Health,NHS Barnsley CCG,8/31/2020,ME-PMS GP Pension AVCs,PRC DELEGATED CO-COMMISSIONING,NHS BARNSLEY CCG GP PRACTICE,33509203,-270.83
Department of Health,NHS Barnsley CCG,8/31/2020,ME-PMS GP Pension EEs Adjs - PMS,PRC DELEGATED CO-COMMISSIONING,NHS BARNSLEY CCG GP PRACTICE,33509203,"-3,477.35"
Department of Health,NHS Barnsley CCG,8/31/2020,ME-PMS GP Pension EEs-PMS,PRC DELEGATED CO-COMMISSIONING,NHS BARNSLEY CCG GP PRACTICE,33509203,"-5,197.24"
Department of Health,NHS Barnsley CCG,8/31/2020,ME-PMS GP Pension ERs Adjs - PMS,PRC DELEGATED CO-COMMISSIONING,NHS BARNSLEY CCG GP PRACTICE,33509203,"-10,304.21"
Department of Health,NHS Barnsley CCG,8/31/2020,ME-PMS GP Prior Year EEs,PRC DELEGATED CO-COMMISSIONING,NHS BARNSLEY CCG GP PRACTICE,33509203,"-3,506.78"
Department of Health,NHS Barnsley CCG,8/31/2020,C&M-GMS Global Sum,PRC DELEGATED CO-COMMISSIONING,NHS BARNSLEY CCG GP PRACTICE,33664240,"53,443.64"
Department of Health,NHS Barnsley CCG,8/31/2020,C&M-GMS PCN DES Participation,PRC DELEGATED CO-COMMISSIONING,NHS BARNSLEY CCG GP PRACTICE,33664240,"1,044.20"
Department of Health,NHS Barnsley CCG,8/31/2020,C&M-GMS Prem Notional Rent,PRC DELEGATED CO-COMMISSIONING,NHS BARNSLEY CCG GP PRACTICE,33664240,"2,750.00"
Department of Health,NHS Barnsley CCG,8/31/2020,C&M-GMS Prem Rates,PRC DELEGATED CO-COMMISSIONING,NHS BARNSLEY CCG GP PRACTICE,33664240,660.00
Department of Health,NHS Barnsley CCG,8/31/2020,C&M-GMS Prem Water Rates,PRC DELEGATED CO-COMMISSIONING,NHS BARNSLEY CCG GP PRACTICE,33664240,74.72
Department of Health,NHS Barnsley CCG,8/31/2020,C&M-GMS QOF Aspiration,PRC DELEGATED CO-COMMISSIONING,NHS BARNSLEY CCG GP PRACTICE,33664240,"4,715.61"
Department of Health,NHS Barnsley CCG,8/31/2020,Clinical&Medical-Commercial Sector,LEARNING DIFFICULTIES,ELYSIUM HEALTHCARE LTD,33697339,"30,972.72"
Department of Health,NHS Barnsley CCG,8/31/2020,Clinical&Medical-Commercial Sector,LEARNING DIFFICULTIES,ELYSIUM HEALTHCARE LTD,33697348,"43,029.24"
Department of Health,NHS Barnsley CCG,7/31/2020,Clinical&Medical-Commercial Sector,LEARNING DIFFICULTIES,ELYSIUM HEALTHCARE LTD,33383458,"43,029.24"
Department of Health,NHS Barnsley CCG,7/31/2020,Clinical&Medical-Commercial Sector,LEARNING DIFFICULTIES,ELYSIUM HEALTHCARE LTD,33383486,"30,972.72"
Department of Health,NHS Barnsley CCG,8/31/2020,C&M-PMS Contract Value,PRC DELEGATED CO-COMMISSIONING,NHS BARNSLEY CCG GP PRACTICE,33486413,"42,557.26"
Department of Health,NHS Barnsley CCG,8/31/2020,C&M-PMS PCN DES Participation,PRC DELEGATED CO-COMMISSIONING,NHS BARNSLEY CCG GP PRACTICE,33486413,796.71
Department of Health,NHS Barnsley CCG,8/31/2020,C&M-PMS PCO Other,PRC DELEGATED CO-COMMISSIONING,NHS BARNSLEY CCG GP PRACTICE,33486413,"3,411.00"
Department of Health,NHS Barnsley CCG,8/31/2020,C&M-PMS Prem Rates,PRC DELEGATED CO-COMMISSIONING,NHS BARNSLEY CCG GP PRACTICE,33486413,"2,667.00"
Department of Health,NHS Barnsley CCG,8/31/2020,C&M-PMS QOF Aspiration,PRC DELEGATED CO-COMMISSIONING,NHS BARNSLEY CCG GP PRACTICE,33486413,"4,499.30"
Department of Health,NHS Barnsley CCG,7/31/2020,Soc Care-Bed-Based Int Care Servs,INTERMEDIATE CARE,HIGHSTONE MEWS CARE HOME,33383867,"33,798.86"
Department of Health,NHS Barnsley CCG,8/31/2020,Apprenticeship Levy Payable,BALANCE SHEET,HMRC,33584228,"1,459.00"
Department of Health,NHS Barnsley CCG,8/31/2020,Income tax <1Yr,BALANCE SHEET,HMRC,33584228,"81,416.10"
Department of Health,NHS Barnsley CCG,8/31/2020,Income tax <1Yr-Student Loans,BALANCE SHEET,HMRC,33584228,"2,537.00"
Department of Health,NHS Barnsley CCG,8/31/2020,National Insurance < 1 yr-NI- ERS,BALANCE SHEET,HMRC,33584228,"58,170.82"
Department of Health,NHS Barnsley CCG,8/31/2020,National Insurance < 1 yr-NI-EES,BALANCE SHEET,HMRC,33584228,"41,877.35"
Department of Health,NHS Barnsley CCG,8/31/2020,Post Graduate Loan Payable,BALANCE SHEET,HMRC,33584228,4.00
Department of Health,NHS Barnsley CCG,8/31/2020,Statutory Mat Pay < 1 yr,BALANCE SHEET,HMRC,33584228,"-2,019.17"
Department of Health,NHS Barnsley CCG,8/31/2020,C&M-GMS Global Sum,PRC DELEGATED CO-COMMISSIONING,NHS BARNSLEY CCG GP PRACTICE,33664246,"101,313.06"
Department of Health,NHS Barnsley CCG,8/31/2020,C&M-GMS PCN DES Participation,PRC DELEGATED CO-COMMISSIONING,NHS BARNSLEY CCG GP PRACTICE,33664246,"1,983.65"
Department of Health,NHS Barnsley CCG,8/31/2020,C&M-GMS Prem Healthcentre Rent,PRC DELEGATED CO-COMMISSIONING,NHS BARNSLEY CCG GP PRACTICE,33664246,"40,594.93"
Department of Health,NHS Barnsley CCG,8/31/2020,C&M-GMS QOF Aspiration,PRC DELEGATED CO-COMMISSIONING,NHS BARNSLEY CCG GP PRACTICE,33664246,"12,141.55"
Department of Health,NHS Barnsley CCG,8/31/2020,C&M-GMS DES Learn Dsblty Hlth Chk,PRC DELEGATED CO-COMMISSIONING,NHS BARNSLEY CCG GP PRACTICE,33664242,140.00
Department of Health,NHS Barnsley CCG,8/31/2020,C&M-GMS Global Sum,PRC DELEGATED CO-COMMISSIONING,NHS BARNSLEY CCG GP PRACTICE,33664242,"95,820.38"
Department of Health,NHS Barnsley CCG,8/31/2020,C&M-GMS PCN DES Participation,PRC DELEGATED CO-COMMISSIONING,NHS BARNSLEY CCG GP PRACTICE,33664242,"1,883.17"
Department of Health,NHS Barnsley CCG,8/31/2020,C&M-GMS Prem Healthcentre Rent,PRC DELEGATED CO-COMMISSIONING,NHS BARNSLEY CCG GP PRACTICE,33664242,"22,068.28"
Department of Health,NHS Barnsley CCG,8/31/2020,C&M-GMS Prem Notional Rent,PRC DELEGATED CO-COMMISSIONING,NHS BARNSLEY CCG GP PRACTICE,33664242,"1,466.67"
Department of Health,NHS Barnsley CCG,8/31/2020,C&M-GMS QOF Aspiration,PRC DELEGATED CO-COMMISSIONING,NHS BARNSLEY CCG GP PRACTICE,33664242,"10,495.90"
Department of Health,NHS Barnsley CCG,8/31/2020,ME-GMS GP Pension EEs Adjustments,PRC DELEGATED CO-COMMISSIONING,NHS BARNSLEY CCG GP PRACTICE,33664242,"1,979.16"
Department of Health,NHS Barnsley CCG,8/31/2020,ME-GMS GP Pension ERs Adjustments,PRC DELEGATED CO-COMMISSIONING,NHS BARNSLEY CCG GP PRACTICE,33664242,"2,276.83"
Department of Health,NHS Barnsley CCG,8/31/2020,Clinical&Medical-Commercial Sector,ACUTE COMMISSIONING,INHEALTH PAIN MANAGEMENT SOLUTIONS LTD,33432268,"-25,987.25"
Department of Health,NHS Barnsley CCG,8/31/2020,Clinical&Medical-Commercial Sector,ACUTE COMMISSIONING,INHEALTH PAIN MANAGEMENT SOLUTIONS LTD,33432317,"30,282.62"
Department of Health,NHS Barnsley CCG,8/31/2020,Clinical&Medical-Commercial Sector,ACUTE COMMISSIONING,INHEALTH PAIN MANAGEMENT SOLUTIONS LTD,33432357,"-25,987.25"
Department of Health,NHS Barnsley CCG,8/31/2020,Clinical&Medical-Commercial Sector,ACUTE COMMISSIONING,INHEALTH PAIN MANAGEMENT SOLUTIONS LTD,33432367,"32,782.59"
Department of Health,NHS Barnsley CCG,8/31/2020,Clinical&Medical-Commercial Sector,ACUTE COMMISSIONING,INHEALTH PAIN MANAGEMENT SOLUTIONS LTD,33432376,"-25,987.25"
Department of Health,NHS Barnsley CCG,8/31/2020,Clinical&Medical-Commercial Sector,ACUTE COMMISSIONING,INHEALTH PAIN MANAGEMENT SOLUTIONS LTD,33432389,"26,089.64"
Department of Health,NHS Barnsley CCG,8/31/2020,Clinical&Medical-Commercial Sector,ACUTE COMMISSIONING,INHEALTH PAIN MANAGEMENT SOLUTIONS LTD,33697386,"39,337.22"
Department of Health,NHS Barnsley CCG,8/31/2020,C&M-PMS Contract Value,PRC DELEGATED CO-COMMISSIONING,NHS BARNSLEY CCG GP PRACTICE,33486396,"51,431.13"
Department of Health,NHS Barnsley CCG,8/31/2020,C&M-PMS DES Learn Dsblty Hlth Chk,PRC DELEGATED CO-COMMISSIONING,NHS BARNSLEY CCG GP PRACTICE,33486396,140.00
Department of Health,NHS Barnsley CCG,8/31/2020,C&M-PMS Out of Hours Opt Outs,PRC DELEGATED CO-COMMISSIONING,NHS BARNSLEY CCG GP PRACTICE,33486396,0.44
Department of Health,NHS Barnsley CCG,8/31/2020,C&M-PMS PCN DES Participation,PRC DELEGATED CO-COMMISSIONING,NHS BARNSLEY CCG GP PRACTICE,33486396,969.09
Department of Health,NHS Barnsley CCG,8/31/2020,C&M-PMS Prem Healthcentre Rent,PRC DELEGATED CO-COMMISSIONING,NHS BARNSLEY CCG GP PRACTICE,33486396,"6,104.82"
Department of Health,NHS Barnsley CCG,8/31/2020,C&M-PMS Prem Notional Rent,PRC DELEGATED CO-COMMISSIONING,NHS BARNSLEY CCG GP PRACTICE,33486396,"3,666.67"
Department of Health,NHS Barnsley CCG,8/31/2020,C&M-PMS QOF Aspiration,PRC DELEGATED CO-COMMISSIONING,NHS BARNSLEY CCG GP PRACTICE,33486396,"5,817.61"
Department of Health,NHS Barnsley CCG,8/31/2020,C&M-PMS Contract Value,PRC DELEGATED CO-COMMISSIONING,NHS BARNSLEY CCG GP PRACTICE,33486409,"31,122.44"
Department of Health,NHS Barnsley CCG,8/31/2020,C&M-PMS Out of Hours Opt Outs,PRC DELEGATED CO-COMMISSIONING,NHS BARNSLEY CCG GP PRACTICE,33486409,3.11
Department of Health,NHS Barnsley CCG,8/31/2020,C&M-PMS PCN DES Participation,PRC DELEGATED CO-COMMISSIONING,NHS BARNSLEY CCG GP PRACTICE,33486409,586.39
Department of Health,NHS Barnsley CCG,8/31/2020,C&M-PMS Prem Notional Rent,PRC DELEGATED CO-COMMISSIONING,NHS BARNSLEY CCG GP PRACTICE,33486409,"4,333.33"
Department of Health,NHS Barnsley CCG,8/31/2020,C&M-PMS QOF Aspiration,PRC DELEGATED CO-COMMISSIONING,NHS BARNSLEY CCG GP PRACTICE,33486409,"2,618.55"
Department of Health,NHS Barnsley CCG,8/31/2020,C&M-PMS Cost of Drugs -Dispensing,LOCAL ENHANCED SERVICES,NHS BARNSLEY CCG GP PRACTICE,33682438,"23,558.27"
Department of Health,NHS Barnsley CCG,8/31/2020,C&M-PMS Prof fees Dispensing,PRC DELEGATED CO-COMMISSIONING,NHS BARNSLEY CCG GP PRACTICE,33682438,"4,212.76"
Department of Health,NHS Barnsley CCG,8/31/2020,C&M-PMS Prsc Chrgs Cll&Rmttd by GPs,LOCAL ENHANCED SERVICES,NHS BARNSLEY CCG GP PRACTICE,33682438,"1,537.20"
Department of Health,NHS Barnsley CCG,8/31/2020,C&M-APMS Contract Value,PRC DELEGATED CO-COMMISSIONING,NHS BARNSLEY CCG GP PRACTICE,33486400,"20,506.86"
Department of Health,NHS Barnsley CCG,8/31/2020,C&M-APMS OOH Opt Outs,PRC DELEGATED CO-COMMISSIONING,NHS BARNSLEY CCG GP PRACTICE,33486400,13.06
Department of Health,NHS Barnsley CCG,8/31/2020,C&M-APMS PCN DES Participation,PRC DELEGATED CO-COMMISSIONING,NHS BARNSLEY CCG GP PRACTICE,33486400,386.98
Department of Health,NHS Barnsley CCG,8/31/2020,C&M-APMS Prem Healthcentre Rent,PRC DELEGATED CO-COMMISSIONING,NHS BARNSLEY CCG GP PRACTICE,33486400,"5,111.96"
Department of Health,NHS Barnsley CCG,8/31/2020,C&M-APMS QOF Aspiration,PRC DELEGATED CO-COMMISSIONING,NHS BARNSLEY CCG GP PRACTICE,33486400,"1,417.25"
Department of Health,NHS Barnsley CCG,8/31/2020,C&M-PMS QOF Aspiration,PRC DELEGATED CO-COMMISSIONING,NHS BARNSLEY CCG GP PRACTICE,33486400,"1,447.43"
Department of Health,NHS Barnsley CCG,8/31/2020,Hcare Srv Rec NHS Trust-Contract Baseline,ACUTE COMMISSIONING,LEEDS TEACHING HOSPITALS NHS TRUST,33432999,"95,721.00"
Department of Health,NHS Barnsley CCG,8/31/2020,Hcare Srv Rec NHS Trust-Contract Baseline,ACUTE COMMISSIONING,MID YORKSHIRE HOSPITALS NHS TRUST,33433001,"283,165.00"
Department of Health,NHS Barnsley CCG,8/31/2020,Bldg/Eng Equip Maint Cont,ADMINISTRATION & BUSINESS SUPPORT,NHS PROPERTY SERVICES LTD,33695212,"3,126.07"
Department of Health,NHS Barnsley CCG,8/31/2020,Service Charge,ADMINISTRATION & BUSINESS SUPPORT,NHS PROPERTY SERVICES LTD,33695212,"25,430.50"
Department of Health,NHS Barnsley CCG,7/31/2020,Charges from CCG,BUSINESS INFORMATICS,NHS SHEFFIELD CCG,33167222,"23,610.00"
Department of Health,NHS Barnsley CCG,7/31/2020,Telecoms-Data lines,PRIMARY CARE IT,NHS SHEFFIELD CCG,33167222,"151,990.50"
Department of Health,NHS Barnsley CCG,8/31/2020,Clinical&Medical-Commercial Sector,ACUTE COMMISSIONING,ONEHEALTH GROUP,33697395,"-610,232.04"
Department of Health,NHS Barnsley CCG,8/31/2020,Computer Software/License,MEDICINES MANAGEMENT - CLINICAL,OPTUM HEALTH SOLUTIONS (UK) LTD,33471267,"71,191.44"
Department of Health,NHS Barnsley CCG,8/31/2020,Computer Software/License,MEDICINES MANAGEMENT - CLINICAL,OPTUM HEALTH SOLUTIONS (UK) LTD,33471267,"14,238.29"
Department of Health,NHS Barnsley CCG,8/31/2020,Other Transport Costs,PATIENT TRANSPORT,PREMIER CARE DIRECT LTD,33697368,"35,025.67"
Department of Health,NHS Barnsley CCG,8/31/2020,Hcare Srv Rec Fdtn Trust-Non Contract,MENTAL HEALTH SERVICES - NOT CONTRACTED ACTIVITY,ROTHERHAM DONCASTER AND SOUTH HUMBER NHS FOUNDATION TRUST,33432995,"61,910.00"
Department of Health,NHS Barnsley CCG,8/31/2020,Hcare Srv Rec Fdtn Trust-Contract Baseline,ACUTE COMMISSIONING,ROTHERHAM NHS FOUNDATION TRUST,33433014,"430,973.00"
Department of Health,NHS Barnsley CCG,8/31/2020,C&M-GMS DES Learn Dsblty Hlth Chk,PRC DELEGATED CO-COMMISSIONING,NHS BARNSLEY CCG GP PRACTICE,33671621,"5,320.00"
Department of Health,NHS Barnsley CCG,8/31/2020,C&M-GMS Global Sum,PRC DELEGATED CO-COMMISSIONING,NHS BARNSLEY CCG GP PRACTICE,33671621,"64,377.83"
Department of Health,NHS Barnsley CCG,8/31/2020,C&M-GMS PCN DES Participation,PRC DELEGATED CO-COMMISSIONING,NHS BARNSLEY CCG GP PRACTICE,33671621,"1,272.87"
Department of Health,NHS Barnsley CCG,8/31/2020,C&M-GMS Prem Notional Rent,PRC DELEGATED CO-COMMISSIONING,NHS BARNSLEY CCG GP PRACTICE,33671621,"9,345.31"
Department of Health,NHS Barnsley CCG,8/31/2020,C&M-GMS Prem Rates,PRC DELEGATED CO-COMMISSIONING,NHS BARNSLEY CCG GP PRACTICE,33671621,904.00
Department of Health,NHS Barnsley CCG,8/31/2020,C&M-GMS QOF Aspiration,PRC DELEGATED CO-COMMISSIONING,NHS BARNSLEY CCG GP PRACTICE,33671621,"7,046.77"
Department of Health,NHS Barnsley CCG,8/31/2020,Hcare Srv Rec Fdtn Trust-Contract Baseline,ACUTE COMMISSIONING,SHEFFIELD CHILDRENS NHS FOUNDATION TRUST,33433010,"151,120.00"
Department of Health,NHS Barnsley CCG,8/31/2020,Cont Care- Prior Year Payments,CHC ADULT FULLY FUNDED,SHEFFIELD CITY COUNCIL,33697271,"63,414.21"
Department of Health,NHS Barnsley CCG,8/31/2020,Hcare Srv Rec Fdtn Trust-Contract Baseline,MENTAL HEALTH CONTRACTS,SHEFFIELD HEALTH & SOCIAL CARE NHS FOUNDATION TRUST,33432996,"27,253.00"
Department of Health,NHS Barnsley CCG,8/31/2020,Hcare Srv Rec Fdtn Trust-Contract Baseline,ACUTE COMMISSIONING,SHEFFIELD TEACHING HOSPITALS NHS FOUNDATION TRUST,33433012,"2,197,471.00"
Department of Health,NHS Barnsley CCG,8/31/2020,Hcare Srv Rec Fdtn Trust-Contract Baseline,COMMUNITY SERVICES,SOUTH WEST YORKSHIRE PARTNERSHIP NHS FOUNDATION TRUST,33432997,"5,134,896.00"
Department of Health,NHS Barnsley CCG,7/31/2020,Cont Care- Prior Year Payments,CHC ADULT FULLY FUNDED,STONEGATE LEGAL LTD,33383897,"31,893.32"
Department of Health,NHS Barnsley CCG,7/31/2020,NON PUPOC CHC Income Tax Payable,Balance Sheet,STONEGATE LEGAL LTD,33383897,-170.92
Department of Health,NHS Barnsley CCG,8/31/2020,Hcare Srv Rec NHS Trust-Non Contract,NCAS/OATS,UNITED LINCOLNSHIRE HOSPITALS NHS TRUST,33433003,"27,186.00"
Department of Health,NHS Barnsley CCG,8/31/2020,C&M-PMS Contract Value,PRC DELEGATED CO-COMMISSIONING,NHS BARNSLEY CCG GP PRACTICE,33486398,"81,200.54"
Department of Health,NHS Barnsley CCG,8/31/2020,C&M-PMS Out of Hours Opt Outs,PRC DELEGATED CO-COMMISSIONING,NHS BARNSLEY CCG GP PRACTICE,33486398,16.46
Department of Health,NHS Barnsley CCG,8/31/2020,C&M-PMS PCN DES Participation,PRC DELEGATED CO-COMMISSIONING,NHS BARNSLEY CCG GP PRACTICE,33486398,"1,530.00"
Department of Health,NHS Barnsley CCG,8/31/2020,C&M-PMS Prem Actual Rent,PRC DELEGATED CO-COMMISSIONING,NHS BARNSLEY CCG GP PRACTICE,33486398,319.38
Department of Health,NHS Barnsley CCG,8/31/2020,C&M-PMS Prem Healthcentre Rent,PRC DELEGATED CO-COMMISSIONING,NHS BARNSLEY CCG GP PRACTICE,33486398,"22,813.77"
Department of Health,NHS Barnsley CCG,8/31/2020,C&M-PMS QOF Aspiration,PRC DELEGATED CO-COMMISSIONING,NHS BARNSLEY CCG GP PRACTICE,33486398,"7,747.41"
Department of Health,NHS Barnsley CCG,8/31/2020,C&M-PMS Contract Value,PRC DELEGATED CO-COMMISSIONING,NHS BARNSLEY CCG GP PRACTICE,33486411,"46,220.72"
Department of Health,NHS Barnsley CCG,8/31/2020,C&M-PMS Out of Hours Opt Outs,PRC DELEGATED CO-COMMISSIONING,NHS BARNSLEY CCG GP PRACTICE,33486411,15.39
Department of Health,NHS Barnsley CCG,8/31/2020,C&M-PMS PCN DES Participation,PRC DELEGATED CO-COMMISSIONING,NHS BARNSLEY CCG GP PRACTICE,33486411,870.90
Department of Health,NHS Barnsley CCG,8/31/2020,C&M-PMS PCO Other,PRC DELEGATED CO-COMMISSIONING,NHS BARNSLEY CCG GP PRACTICE,33486411,338.50
Department of Health,NHS Barnsley CCG,8/31/2020,C&M-PMS Prem Rates,PRC DELEGATED CO-COMMISSIONING,NHS BARNSLEY CCG GP PRACTICE,33486411,"1,528.00"
Department of Health,NHS Barnsley CCG,8/31/2020,C&M-PMS QOF Aspiration,PRC DELEGATED CO-COMMISSIONING,NHS BARNSLEY CCG GP PRACTICE,33486411,"4,395.43"
Department of Health,NHS Barnsley CCG,8/31/2020,Hcare Srv Rec NHS Trust-Contract Baseline,AMBULANCE SERVICES,YORKSHIRE AMBULANCE SERVICE NHS TRUST,33433008,"1,021,254.00"
,,,,,,,"31,155,198.21"
